[Event "Live Chess"]
[Site "Chess.com"]
[Date "2023.05.20"]
[Round "-"]
[White "WelshTiger"]
[Black "wot-not"]
[Result "1-0"]
[WhiteElo "2389"]
[BlackElo "1520"]
[TimeControl "300"]
[EndTime "15:08:22 PDT"]
[Termination "WelshTiger won by resignation"]

1. e4 {[%clk 0:04:56.1]} 1... e6 {[%clk 0:04:55.8]} 2. Nf3 {[%clk 0:04:49.3]}
2... d5 {[%clk 0:04:49.9]} 3. e5 {[%clk 0:04:48.7]} 3... c5 {[%clk 0:04:48]} 4.
b4 {[%clk 0:04:47.5]} 4... cxb4 {[%clk 0:04:41.3]} 5. a3 {[%clk 0:04:46.5]} 5...
bxa3 {[%clk 0:04:32.2]} 6. Bxa3 {[%clk 0:04:39.5]} 6... Bxa3 {[%clk 0:04:31]} 7.
Nxa3 {[%clk 0:04:36.8]} 7... Ne7 {[%clk 0:04:30.6]} 8. Nb5 {[%clk 0:04:31.7]}
8... O-O {[%clk 0:04:23.7]} 9. d4 {[%clk 0:04:25.3]} 9... a6 {[%clk 0:04:17.9]}
10. Bd3 {[%clk 0:04:21.5]} 10... Nbc6 {[%clk 0:04:00.7]} 11. O-O {[%clk
0:04:17.9]} 11... Nf5 {[%clk 0:03:52.4]} 12. Bxf5 {[%clk 0:04:16.4]} 12... exf5
{[%clk 0:03:51.4]} 13. Nd6 {[%clk 0:04:15.6]} 13... b5 {[%clk 0:03:43.1]} 14.
Qd3 {[%clk 0:04:09.6]} 14... Be6 {[%clk 0:03:33.1]} 15. Nxf5 {[%clk 0:03:58.8]}
15... Bxf5 {[%clk 0:03:31.5]} 16. Qxf5 {[%clk 0:03:58.7]} 16... Qb6 {[%clk
0:03:25.6]} 17. c3 {[%clk 0:03:56.4]} 17... a5 {[%clk 0:03:09.9]} 18. Ng5 {[%clk
0:03:55.4]} 18... g6 {[%clk 0:03:05.7]} 19. Qf4 {[%clk 0:03:50.1]} 19... b4
{[%clk 0:03:01.8]} 20. Qh4 {[%clk 0:03:45]} 20... h5 {[%clk 0:02:54.6]} 21. Rfb1
{[%clk 0:03:33.9]} 21... Kg7 {[%clk 0:02:35.3]} 22. Nf3 {[%clk 0:03:26.2]} 22...
Ne7 {[%clk 0:02:29.8]} 23. Qxe7 {[%clk 0:03:21.6]} 23... Rae8 {[%clk 0:02:23.7]}
24. Qh4 {[%clk 0:03:11.7]} 24... Qc6 {[%clk 0:02:15]} 25. cxb4 {[%clk
0:03:09.3]} 25... axb4 {[%clk 0:02:13.5]} 26. Rxb4 {[%clk 0:03:07]} 26... Qc3
{[%clk 0:02:12.6]} 27. Rab1 {[%clk 0:03:03.7]} 27... Rc8 {[%clk 0:02:11]} 28.
Qf6+ {[%clk 0:03:00.3]} 28... Kg8 {[%clk 0:02:09.4]} 29. h3 {[%clk 0:02:59.5]}
29... Qd3 {[%clk 0:01:53.8]} 30. e6 {[%clk 0:02:54.6]} 30... Rc2 {[%clk
0:01:48.1]} 31. exf7+ {[%clk 0:02:52.6]} 31... Rxf7 {[%clk 0:01:46.7]} 32. Rb8+
{[%clk 0:02:51.4]} 1-0

[Event "Live Chess"]
[Site "Chess.com"]
[Date "2023.05.20"]
[Round "-"]
[White "GEMdzq"]
[Black "Tushinskiy"]
[Result "0-1"]
[WhiteElo "2228"]
[BlackElo "2151"]
[TimeControl "300"]
[EndTime "15:08:25 PDT"]
[Termination "Tushinskiy won on time"]

1. e4 {[%clk 0:04:58.9]} 1... e5 {[%clk 0:04:58.4]} 2. Nf3 {[%clk 0:04:57.2]}
2... d6 {[%clk 0:04:56.1]} 3. Bc4 {[%clk 0:04:55.8]} 3... Bg4 {[%clk 0:04:20.3]}
4. O-O {[%clk 0:04:46.1]} 4... Nf6 {[%clk 0:04:18.3]} 5. d4 {[%clk 0:04:36.3]}
5... Nbd7 {[%clk 0:04:15.8]} 6. c3 {[%clk 0:04:18.2]} 6... Bh5 {[%clk
0:04:13.6]} 7. Qb3 {[%clk 0:04:07.3]} 7... Rb8 {[%clk 0:04:12.1]} 8. dxe5 {[%clk
0:04:02.1]} 8... dxe5 {[%clk 0:04:10.7]} 9. Rd1 {[%clk 0:03:57]} 9... Bd6 {[%clk
0:04:08.3]} 10. Bg5 {[%clk 0:03:41.5]} 10... O-O {[%clk 0:04:05.8]} 11. Nbd2
{[%clk 0:03:40.4]} 11... Qe7 {[%clk 0:04:02.3]} 12. Re1 {[%clk 0:03:33.2]} 12...
b5 {[%clk 0:03:55.5]} 13. Bd3 {[%clk 0:03:25.9]} 13... c5 {[%clk 0:03:48.6]} 14.
Qc2 {[%clk 0:02:59.3]} 14... c4 {[%clk 0:03:45.4]} 15. Be2 {[%clk 0:02:58.5]}
15... h6 {[%clk 0:03:43.4]} 16. Bh4 {[%clk 0:02:47.4]} 16... Nc5 {[%clk
0:03:42.1]} 17. b4 {[%clk 0:02:39.9]} 17... Ne6 {[%clk 0:03:34.3]} 18. Nf1
{[%clk 0:02:31.5]} 18... Nf4 {[%clk 0:03:28.8]} 19. Ne3 {[%clk 0:02:26.5]} 19...
Bg6 {[%clk 0:03:23.2]} 20. g3 {[%clk 0:01:49.4]} 20... Nxe2+ {[%clk 0:03:14.8]}
21. Rxe2 {[%clk 0:01:48.8]} 21... Qe6 {[%clk 0:03:14]} 22. Nf5 {[%clk
0:01:42.1]} 22... Nxe4 {[%clk 0:03:03.7]} 23. Nxh6+ {[%clk 0:01:19.7]} 23...
gxh6 {[%clk 0:03:01.3]} 24. Rxe4 {[%clk 0:01:19]} 24... Qd5 {[%clk 0:02:34.1]}
25. Rae1 {[%clk 0:01:16.2]} 25... Rbe8 {[%clk 0:02:32.9]} 26. Nd2 {[%clk
0:00:57.1]} 26... Bc7 {[%clk 0:02:28.5]} 27. Qd1 {[%clk 0:00:54.8]} 27... Bxe4
{[%clk 0:02:21.7]} 28. Nxe4 {[%clk 0:00:53.7]} 28... Qxd1 {[%clk 0:02:20.3]} 29.
Nf6+ {[%clk 0:00:50.5]} 29... Kh8 {[%clk 0:02:18.1]} 30. Rxd1 {[%clk 0:00:49.9]}
30... Rd8 {[%clk 0:02:17.1]} 31. Nd7 {[%clk 0:00:44.2]} 31... Rfe8 {[%clk
0:02:13.1]} 32. Bxd8 {[%clk 0:00:40.8]} 32... Rxd8 {[%clk 0:02:13]} 33. Kf1
{[%clk 0:00:39.8]} 33... Kg7 {[%clk 0:02:08.3]} 34. Ke2 {[%clk 0:00:38.7]} 34...
f5 {[%clk 0:02:07.1]} 35. Nc5 {[%clk 0:00:35.7]} 35... Rxd1 {[%clk 0:02:04.5]}
36. Kxd1 {[%clk 0:00:35.6]} 36... Kf7 {[%clk 0:02:02.6]} 37. Ke2 {[%clk
0:00:33.9]} 37... Bb6 {[%clk 0:02:01.9]} 38. Nd7 {[%clk 0:00:31.1]} 38... Bc7
{[%clk 0:02:00.8]} 39. Nc5 {[%clk 0:00:22.4]} 39... Ke7 {[%clk 0:01:59.6]} 40.
h4 {[%clk 0:00:17.2]} 40... Kd6 {[%clk 0:01:54.6]} 41. a4 {[%clk 0:00:16.4]}
41... Bb6 {[%clk 0:01:52]} 42. Nb7+ {[%clk 0:00:14.5]} 42... Kc6 {[%clk
0:01:50.2]} 43. Na5+ {[%clk 0:00:11.6]} 43... Bxa5 {[%clk 0:01:48.3]} 44. bxa5
{[%clk 0:00:11.5]} 44... bxa4 {[%clk 0:01:47.1]} 45. Kd2 {[%clk 0:00:10.5]}
45... h5 {[%clk 0:01:32.9]} 46. f3 {[%clk 0:00:09.8]} 46... a3 {[%clk
0:01:26.2]} 47. Kc2 {[%clk 0:00:07.6]} 47... e4 {[%clk 0:01:25.2]} 48. fxe4
{[%clk 0:00:06.6]} 48... fxe4 {[%clk 0:01:25.1]} 49. g4 {[%clk 0:00:05]} 49...
a2 {[%clk 0:01:21.7]} 50. Kb2 {[%clk 0:00:03.8]} 50... e3 {[%clk 0:01:21.1]} 51.
gxh5 {[%clk 0:00:03.1]} 51... e2 {[%clk 0:01:20.4]} 52. h6 {[%clk 0:00:02.6]}
52... a1=Q+ {[%clk 0:01:19.4]} 53. Kxa1 {[%clk 0:00:01.2]} 53... e1=Q+ {[%clk
0:01:19.3]} 54. Kb2 {[%clk 0:00:00.1]} 54... Qxh4 {[%clk 0:01:19.2]} 0-1

[Event "Live Chess"]
[Site "Chess.com"]
[Date "2023.05.20"]
[Round "-"]
[White "chrisbradgate"]
[Black "JoeRoot66"]
[Result "0-1"]
[WhiteElo "861"]
[BlackElo "1910"]
[TimeControl "300"]
[EndTime "15:08:26 PDT"]
[Termination "JoeRoot66 won by checkmate"]

1. d4 {[%clk 0:04:58.4]} 1... d5 {[%clk 0:04:59.1]} 2. Bf4 {[%clk 0:04:57.5]}
2... Nf6 {[%clk 0:04:58.5]} 3. e3 {[%clk 0:04:56.8]} 3... c5 {[%clk 0:04:57.7]}
4. c3 {[%clk 0:04:55.2]} 4... Nc6 {[%clk 0:04:57.4]} 5. dxc5 {[%clk 0:04:53.2]}
5... e5 {[%clk 0:04:54.9]} 6. Bg3 {[%clk 0:04:51.8]} 6... Bxc5 {[%clk
0:04:53.7]} 7. Bb5 {[%clk 0:04:50.3]} 7... Bd6 {[%clk 0:04:48.2]} 8. Bxc6+
{[%clk 0:04:48.8]} 8... bxc6 {[%clk 0:04:48.1]} 9. Ne2 {[%clk 0:04:41.3]} 9...
Ba6 {[%clk 0:04:46.3]} 10. O-O {[%clk 0:04:38.1]} 10... Rb8 {[%clk 0:04:46]} 11.
Re1 {[%clk 0:04:34]} 11... Rxb2 {[%clk 0:04:43.9]} 12. Nd2 {[%clk 0:04:22.1]}
12... O-O {[%clk 0:04:39.9]} 13. Nf3 {[%clk 0:04:13.4]} 13... e4 {[%clk
0:04:38.4]} 14. Ne5 {[%clk 0:04:12.5]} 14... Qc7 {[%clk 0:04:33.2]} 15. Nc1
{[%clk 0:03:51.4]} 15... Bxe5 {[%clk 0:04:30.6]} 16. Bxe5 {[%clk 0:03:49.5]}
16... Qxe5 {[%clk 0:04:30.5]} 17. f3 {[%clk 0:03:32.8]} 17... exf3 {[%clk
0:04:26.3]} 18. Qxf3 {[%clk 0:03:32]} 18... Ne4 {[%clk 0:04:18.9]} 19. Ne2
{[%clk 0:03:10.4]} 19... Bxe2 {[%clk 0:04:13.8]} 20. Rxe2 {[%clk 0:03:05.4]}
20... Rxe2 {[%clk 0:04:13.2]} 21. Qxe2 {[%clk 0:03:04.9]} 21... Qxc3 {[%clk
0:04:07.2]} 22. Rf1 {[%clk 0:02:59.1]} 22... Nd2 {[%clk 0:04:00.2]} 23. Rf4
{[%clk 0:02:53.8]} 23... Nc4 {[%clk 0:03:57.9]} 24. Qh5 {[%clk 0:02:44.7]} 24...
Qxe3+ {[%clk 0:03:54.1]} 25. Kh1 {[%clk 0:02:37.8]} 25... Qe1+ {[%clk 0:03:52]}
26. Rf1 {[%clk 0:02:34.5]} 26... Qxf1# {[%clk 0:03:51.9]} 0-1

[Event "Live Chess"]
[Site "Chess.com"]
[Date "2023.05.20"]
[Round "-"]
[White "CameronM1234"]
[Black "omisoc"]
[Result "0-1"]
[WhiteElo "1104"]
[BlackElo "2137"]
[TimeControl "300"]
[EndTime "15:08:41 PDT"]
[Termination "omisoc won by checkmate"]

1. e4 {[%clk 0:04:58.5]} 1... g6 {[%clk 0:04:50.7]} 2. Nf3 {[%clk 0:04:56.1]}
2... Bg7 {[%clk 0:04:44.9]} 3. g3 {[%clk 0:04:54.2]} 3... d6 {[%clk 0:04:43.9]}
4. Bg2 {[%clk 0:04:52.6]} 4... c5 {[%clk 0:04:42.1]} 5. d3 {[%clk 0:04:51.1]}
5... Nc6 {[%clk 0:04:41.5]} 6. c3 {[%clk 0:04:49.4]} 6... Bg4 {[%clk 0:04:39.5]}
7. h3 {[%clk 0:04:48.3]} 7... Bxf3 {[%clk 0:04:37.5]} 8. Qxf3 {[%clk 0:04:48.2]}
8... Nf6 {[%clk 0:04:33.6]} 9. Nd2 {[%clk 0:04:29.2]} 9... O-O {[%clk
0:04:31.7]} 10. Nb3 {[%clk 0:04:14.1]} 10... Rc8 {[%clk 0:04:25.2]} 11. O-O
{[%clk 0:04:11.8]} 11... a6 {[%clk 0:04:14.4]} 12. a4 {[%clk 0:04:08.4]} 12...
c4 {[%clk 0:04:12.6]} 13. Nd2 {[%clk 0:04:02.4]} 13... Ne5 {[%clk 0:04:10.6]}
14. Qd1 {[%clk 0:03:58.4]} 14... Nxd3 {[%clk 0:04:07.4]} 15. Nxc4 {[%clk
0:03:56.5]} 15... Nxc1 {[%clk 0:04:05.8]} 16. Ne3 {[%clk 0:03:27.1]} 16... b5
{[%clk 0:03:57.9]} 17. axb5 {[%clk 0:03:20.3]} 17... axb5 {[%clk 0:03:56.3]} 18.
Qxc1 {[%clk 0:03:18]} 18... b4 {[%clk 0:03:55.4]} 19. Rd1 {[%clk 0:03:03.8]}
19... bxc3 {[%clk 0:03:52.7]} 20. bxc3 {[%clk 0:02:57.9]} 20... Nd7 {[%clk
0:03:44.5]} 21. Ra7 {[%clk 0:02:49.6]} 21... Rxc3 {[%clk 0:03:35.5]} 22. Qb1
{[%clk 0:02:38.3]} 22... Rxe3 {[%clk 0:03:18]} 23. fxe3 {[%clk 0:02:29.7]} 23...
Nc5 {[%clk 0:03:15.6]} 24. Qa2 {[%clk 0:02:16.2]} 24... Be5 {[%clk 0:03:09.3]}
25. Kh2 {[%clk 0:02:02.8]} 25... e6 {[%clk 0:03:08.2]} 26. Rb1 {[%clk
0:01:57.1]} 26... Qh4 {[%clk 0:02:59.8]} 27. Qf2 {[%clk 0:01:40.5]} 27... Qg5
{[%clk 0:02:40.2]} 28. Rf1 {[%clk 0:01:31.3]} 28... f6 {[%clk 0:02:18.9]} 29.
Re7 {[%clk 0:01:12.5]} 29... h5 {[%clk 0:02:12.2]} 30. h4 {[%clk 0:01:06]} 30...
Qxh4+ {[%clk 0:02:07]} 31. Kg1 {[%clk 0:01:03.6]} 31... Bxg3 {[%clk 0:02:02.2]}
32. Qxg3 {[%clk 0:00:52.8]} 32... Qxg3 {[%clk 0:02:00.2]} 33. Kh1 {[%clk
0:00:45]} 33... Nxe4 {[%clk 0:01:53.1]} 34. Bxe4 {[%clk 0:00:38.1]} 34... Qh4+
{[%clk 0:01:50.8]} 35. Kg2 {[%clk 0:00:36.2]} 35... Qxe4+ {[%clk 0:01:49]} 36.
Kf2 {[%clk 0:00:34.8]} 36... Ra8 {[%clk 0:01:45.6]} 37. Re1 {[%clk 0:00:29.3]}
37... Ra2+ {[%clk 0:01:43.9]} 38. Re2 {[%clk 0:00:28.5]} 38... Rxe2+ {[%clk
0:01:40.6]} 39. Kxe2 {[%clk 0:00:27.8]} 39... h4 {[%clk 0:01:38.2]} 40. Ra7
{[%clk 0:00:24.1]} 40... h3 {[%clk 0:01:36.8]} 41. Ra1 {[%clk 0:00:22.4]} 41...
h2 {[%clk 0:01:35.4]} 42. Re1 {[%clk 0:00:11.3]} 42... h1=Q {[%clk 0:01:32]} 43.
Rxh1 {[%clk 0:00:10.9]} 43... Qxh1 {[%clk 0:01:30.2]} 44. e4 {[%clk 0:00:10.2]}
44... Qxe4+ {[%clk 0:01:26.7]} 45. Kd2 {[%clk 0:00:09.5]} 45... g5 {[%clk
0:01:25.6]} 46. Kc3 {[%clk 0:00:08.8]} 46... g4 {[%clk 0:01:24.8]} 47. Kb3
{[%clk 0:00:08.1]} 47... g3 {[%clk 0:01:22.8]} 48. Kc3 {[%clk 0:00:08]} 48... g2
{[%clk 0:01:22]} 49. Kd2 {[%clk 0:00:07.9]} 49... g1=Q {[%clk 0:01:19.8]} 50.
Kc3 {[%clk 0:00:07.8]} 50... Qg3+ {[%clk 0:01:17.7]} 51. Kd2 {[%clk 0:00:06.8]}
51... Qee3+ {[%clk 0:01:16.8]} 52. Kc2 {[%clk 0:00:05.7]} 52... Qc3+ {[%clk
0:01:14.5]} 53. Kd1 {[%clk 0:00:04.7]} 53... Qge1# {[%clk 0:01:12.6]} 0-1

[Event "Live Chess"]
[Site "Chess.com"]
[Date "2023.05.20"]
[Round "-"]
[White "Shepherds_Pie"]
[Black "raminguy"]
[Result "1/2-1/2"]
[WhiteElo "1927"]
[BlackElo "1952"]
[TimeControl "300"]
[EndTime "15:08:42 PDT"]
[Termination "Game drawn by agreement"]

1. c4 {[%clk 0:04:50.6]} 1... e6 {[%clk 0:04:58.5]} 2. Nc3 {[%clk 0:04:47.8]}
2... d5 {[%clk 0:04:57.6]} 3. d4 {[%clk 0:04:44.7]} 3... a6 {[%clk 0:04:53.2]}
4. Nf3 {[%clk 0:04:40]} 4... dxc4 {[%clk 0:04:51.8]} 5. a4 {[%clk 0:04:38.7]}
5... Nc6 {[%clk 0:04:50.6]} 6. e4 {[%clk 0:04:36.8]} 6... Na5 {[%clk 0:04:50.1]}
7. g3 {[%clk 0:04:33.3]} 7... Nf6 {[%clk 0:04:44.1]} 8. Bg2 {[%clk 0:04:31.4]}
8... Nb3 {[%clk 0:04:42.6]} 9. Rb1 {[%clk 0:04:29.6]} 9... c6 {[%clk 0:04:34.2]}
10. Nd2 {[%clk 0:04:24.7]} 10... Qxd4 {[%clk 0:04:09]} 11. O-O {[%clk
0:04:22.8]} 11... Bb4 {[%clk 0:03:52.6]} 12. e5 {[%clk 0:04:11.2]} 12... Nd5
{[%clk 0:03:45.2]} 13. Nxb3 {[%clk 0:04:02.8]} 13... Qxd1 {[%clk 0:03:43.3]} 14.
Rxd1 {[%clk 0:03:55.1]} 14... Bxc3 {[%clk 0:03:28.5]} 15. Bxd5 {[%clk
0:03:49.9]} 15... cxd5 {[%clk 0:03:26.2]} 16. bxc3 {[%clk 0:03:47.3]} 16... cxb3
{[%clk 0:03:19.1]} 17. Rxb3 {[%clk 0:03:46.2]} 17... O-O {[%clk 0:03:14.4]} 18.
Ba3 {[%clk 0:03:38.5]} 18... Rd8 {[%clk 0:03:04.3]} 19. a5 {[%clk 0:03:36.9]}
19... Rd7 {[%clk 0:02:55.9]} 20. Bd6 {[%clk 0:03:32.9]} 20... f6 {[%clk
0:02:54]} 21. f4 {[%clk 0:03:31]} 21... h5 {[%clk 0:02:29.5]} 22. h4 {[%clk
0:03:28.6]} 22... Kf7 {[%clk 0:02:24.9]} 23. Kf2 {[%clk 0:03:26.8]} 23... g6
{[%clk 0:01:55]} 24. Ke3 {[%clk 0:03:23.8]} 24... f5 {[%clk 0:01:52.6]} 25. Kd4
{[%clk 0:03:21.3]} 25... Rd8 {[%clk 0:01:50.5]} 26. Rc1 {[%clk 0:03:18.2]} 26...
Ke8 {[%clk 0:01:45.7]} 27. c4 {[%clk 0:03:16.6]} 27... dxc4 {[%clk 0:01:34.7]}
28. Rxc4 {[%clk 0:03:14.9]} 28... Rd7 {[%clk 0:01:24]} 29. Rbc3 {[%clk
0:03:10.1]} 29... Kd8 {[%clk 0:01:20.9]} 30. Kc5 {[%clk 0:03:03.4]} 30... b6+
{[%clk 0:01:17.1]} 31. axb6 {[%clk 0:02:58.9]} 31... Bb7 {[%clk 0:01:15.8]} 32.
Bc7+ {[%clk 0:02:54.1]} 32... Ke8 {[%clk 0:01:13.2]} 33. Rd4 {[%clk 0:02:52.8]}
33... a5 {[%clk 0:00:51.8]} 34. Rxd7 {[%clk 0:02:50.4]} 34... Kxd7 {[%clk
0:00:50.5]} 35. Rd3+ {[%clk 0:02:49.2]} 35... Ke8 {[%clk 0:00:49.2]} 36. Rd6
{[%clk 0:02:43]} 36... Ke7 {[%clk 0:00:44.9]} 37. Rd3 {[%clk 0:02:34.8]} 37...
a4 {[%clk 0:00:43.5]} 38. Ra3 {[%clk 0:02:33.5]} 38... Kd7 {[%clk 0:00:41.4]}
39. Kb4 {[%clk 0:02:27.6]} 39... Bd5 {[%clk 0:00:33.6]} 40. Rxa4 {[%clk
0:02:18.6]} 40... Rxa4+ {[%clk 0:00:32]} 41. Kxa4 {[%clk 0:02:17.6]} 41... Kc6
{[%clk 0:00:31.8]} 42. Kb4 {[%clk 0:02:16.1]} 42... Bg2 {[%clk 0:00:29.4]} 43.
Ka5 {[%clk 0:02:14.4]} 43... Bf1 {[%clk 0:00:28.4]} 44. Bd6 {[%clk 0:02:11.8]}
44... Bc4 {[%clk 0:00:26.3]} 45. Bc7 {[%clk 0:01:57.3]} 45... Be2 {[%clk
0:00:25.2]} 46. Kb4 {[%clk 0:01:55.1]} 46... Bd3 {[%clk 0:00:24.1]} 47. Kc3
{[%clk 0:01:53.9]} 47... Be4 {[%clk 0:00:23.4]} 48. Kd4 {[%clk 0:01:52.5]} 48...
Bd5 {[%clk 0:00:22.7]} 1/2-1/2

[Event "Live Chess"]
[Site "Chess.com"]
[Date "2023.05.20"]
[Round "-"]
[White "GMHarry-youtube"]
[Black "lateforthesky"]
[Result "1-0"]
[WhiteElo "2031"]
[BlackElo "2083"]
[TimeControl "300"]
[EndTime "15:08:43 PDT"]
[Termination "GMHarry-youtube won by resignation"]

1. e4 {[%clk 0:04:58.8]} 1... c5 {[%clk 0:04:57.1]} 2. Nf3 {[%clk 0:04:57.6]}
2... Nf6 {[%clk 0:04:55.5]} 3. e5 {[%clk 0:04:49.9]} 3... Nd5 {[%clk 0:04:54.6]}
4. d4 {[%clk 0:04:48.1]} 4... cxd4 {[%clk 0:04:51.7]} 5. Qxd4 {[%clk 0:04:45.9]}
5... e6 {[%clk 0:04:49.4]} 6. c4 {[%clk 0:04:44]} 6... Nc6 {[%clk 0:04:47.9]} 7.
Qd1 {[%clk 0:04:41.3]} 7... Nde7 {[%clk 0:04:44.4]} 8. Nc3 {[%clk 0:04:39.7]}
8... Ng6 {[%clk 0:04:43.2]} 9. Qe2 {[%clk 0:04:32.2]} 9... a6 {[%clk 0:04:29.1]}
10. h4 {[%clk 0:04:30.1]} 10... Qc7 {[%clk 0:04:25.7]} 11. h5 {[%clk 0:04:28]}
11... Ngxe5 {[%clk 0:04:24.3]} 12. Bf4 {[%clk 0:04:25.7]} 12... Nd3+ {[%clk
0:04:17.2]} 13. Qxd3 {[%clk 0:04:21.7]} 13... Qxf4 {[%clk 0:04:16.2]} 14. g3
{[%clk 0:04:19.4]} 14... Qc7 {[%clk 0:03:57.8]} 15. O-O-O {[%clk 0:04:15.4]}
15... Be7 {[%clk 0:03:55.9]} 16. h6 {[%clk 0:04:07.6]} 16... g6 {[%clk
0:03:52.6]} 17. Nd4 {[%clk 0:04:06.7]} 17... O-O {[%clk 0:03:38.6]} 18. Nxc6
{[%clk 0:04:04]} 18... dxc6 {[%clk 0:03:26.7]} 19. Qd4 {[%clk 0:03:57.1]} 19...
e5 {[%clk 0:03:24.7]} 20. Qe3 {[%clk 0:03:53.2]} 20... f5 {[%clk 0:03:19.1]} 21.
c5 {[%clk 0:03:47.2]} 21... Be6 {[%clk 0:03:15.3]} 22. f4 {[%clk 0:03:38.3]}
22... exf4 {[%clk 0:03:07.3]} 23. Qxe6+ {[%clk 0:03:35.7]} 23... Rf7 {[%clk
0:03:06.6]} 24. Bc4 {[%clk 0:03:33.4]} 24... Rf8 {[%clk 0:02:59.6]} 25. Rd7
{[%clk 0:03:29.3]} 1-0

[Event "Live Chess"]
[Site "Chess.com"]
[Date "2023.05.20"]
[Round "-"]
[White "Jo1ts"]
[Black "AbilifyXL"]
[Result "0-1"]
[WhiteElo "765"]
[BlackElo "1972"]
[TimeControl "300"]
[EndTime "15:08:45 PDT"]
[Termination "AbilifyXL won by resignation"]

1. d4 {[%clk 0:04:58.2]} 1... d5 {[%clk 0:04:59.1]} 2. Bf4 {[%clk 0:04:56.9]}
2... c6 {[%clk 0:04:58.4]} 3. Nf3 {[%clk 0:04:55.6]} 3... Nf6 {[%clk 0:04:57.4]}
4. e3 {[%clk 0:04:54.7]} 4... Bg4 {[%clk 0:04:56.6]} 5. Be2 {[%clk 0:04:52.9]}
5... e6 {[%clk 0:04:55.9]} 6. h3 {[%clk 0:04:51]} 6... Bh5 {[%clk 0:04:51.9]} 7.
Nbd2 {[%clk 0:04:49.1]} 7... Bd6 {[%clk 0:04:51.1]} 8. Ne5 {[%clk 0:04:42.8]}
8... Bg6 {[%clk 0:04:48.4]} 9. g4 {[%clk 0:04:31.3]} 9... Qc7 {[%clk 0:04:34.5]}
10. h4 {[%clk 0:04:25.5]} 10... h6 {[%clk 0:04:29]} 11. h5 {[%clk 0:04:17.9]}
11... Bh7 {[%clk 0:04:24.5]} 12. c3 {[%clk 0:04:08.1]} 12... Nbd7 {[%clk
0:04:23.3]} 13. Ndf3 {[%clk 0:03:58.1]} 13... Be4 {[%clk 0:04:20.6]} 14. Bd3
{[%clk 0:03:53.7]} 14... Bxf3 {[%clk 0:04:18.6]} 15. Qxf3 {[%clk 0:03:51.9]}
15... Nxe5 {[%clk 0:04:17.1]} 16. Bxe5 {[%clk 0:03:48.3]} 16... Bxe5 {[%clk
0:04:17]} 17. dxe5 {[%clk 0:03:46]} 17... Qxe5 {[%clk 0:04:16.9]} 18. O-O-O
{[%clk 0:03:31.2]} 18... O-O-O {[%clk 0:04:15.7]} 19. Kb1 {[%clk 0:03:23.7]}
19... Qg5 {[%clk 0:04:13]} 20. Rhg1 {[%clk 0:03:16.7]} 20... Rhe8 {[%clk
0:04:01.7]} 21. e4 {[%clk 0:03:14.5]} 21... dxe4 {[%clk 0:03:57.3]} 22. Bxe4
{[%clk 0:03:09.1]} 22... Rxd1+ {[%clk 0:03:52.2]} 23. Rxd1 {[%clk 0:03:08.3]}
23... Qxg4 {[%clk 0:03:46.1]} 24. Qxg4 {[%clk 0:02:59.4]} 24... Nxg4 {[%clk
0:03:44.4]} 25. Bf3 {[%clk 0:02:49.1]} 25... Nxf2 {[%clk 0:03:31]} 26. Rd2
{[%clk 0:02:48.4]} 26... Nh3 {[%clk 0:03:29.2]} 27. Rg2 {[%clk 0:02:33.4]} 27...
Ng5 {[%clk 0:03:27.1]} 28. Rf2 {[%clk 0:02:21.3]} 28... f5 {[%clk 0:03:21.9]}
29. Bg2 {[%clk 0:02:11.8]} 29... Kd7 {[%clk 0:03:16.6]} 30. Rd2+ {[%clk
0:02:09.5]} 30... Ke7 {[%clk 0:03:15.4]} 31. Re2 {[%clk 0:02:03]} 31... Kf6
{[%clk 0:03:13.3]} 32. Rd2 {[%clk 0:01:54.8]} 32... e5 {[%clk 0:03:11.6]} 33.
Rd6+ {[%clk 0:01:50.2]} 33... Re6 {[%clk 0:03:09.3]} 34. Rd7 {[%clk 0:01:46.2]}
34... Re7 {[%clk 0:03:08.2]} 35. Rd6+ {[%clk 0:01:44.8]} 35... Ne6 {[%clk
0:03:04.2]} 36. Bh3 {[%clk 0:01:35.6]} 36... e4 {[%clk 0:02:55.2]} 37. Bf1
{[%clk 0:01:14.4]} 37... Ke5 {[%clk 0:02:53.6]} 38. Rd1 {[%clk 0:01:10.1]} 38...
f4 {[%clk 0:02:52.6]} 0-1

[Event "Live Chess"]
[Site "Chess.com"]
[Date "2023.05.20"]
[Round "-"]
[White "CheckThis4"]
[Black "mikkyb4"]
[Result "1-0"]
[WhiteElo "2547"]
[BlackElo "1007"]
[TimeControl "300"]
[EndTime "15:08:54 PDT"]
[Termination "CheckThis4 won by checkmate"]

1. d4 {[%clk 0:04:58]} 1... g6 {[%clk 0:04:59.1]} 2. Nc3 {[%clk 0:04:57.1]} 2...
Bg7 {[%clk 0:04:58.2]} 3. h4 {[%clk 0:04:56.6]} 3... h5 {[%clk 0:04:55.4]} 4. e4
{[%clk 0:04:55.4]} 4... d6 {[%clk 0:04:53.5]} 5. Be3 {[%clk 0:04:54.8]} 5... e5
{[%clk 0:04:44.2]} 6. Nge2 {[%clk 0:04:52.7]} 6... Nc6 {[%clk 0:04:40.4]} 7. d5
{[%clk 0:04:51.6]} 7... Nce7 {[%clk 0:04:39.2]} 8. f3 {[%clk 0:04:51.1]} 8... f5
{[%clk 0:04:35.7]} 9. Qd2 {[%clk 0:04:49.4]} 9... f4 {[%clk 0:04:33.8]} 10. Bf2
{[%clk 0:04:48.6]} 10... Nf6 {[%clk 0:04:30.7]} 11. Nc1 {[%clk 0:04:47.6]} 11...
Nh7 {[%clk 0:04:24.2]} 12. Nb3 {[%clk 0:04:46.4]} 12... g5 {[%clk 0:04:18.9]}
13. hxg5 {[%clk 0:04:44.8]} 13... Nxg5 {[%clk 0:04:17.5]} 14. O-O-O {[%clk
0:04:43.6]} 14... a6 {[%clk 0:04:07.6]} 15. a4 {[%clk 0:04:38.6]} 15... Bd7
{[%clk 0:04:03.7]} 16. Kb1 {[%clk 0:04:37.3]} 16... Qb8 {[%clk 0:03:58.7]} 17.
Na5 {[%clk 0:04:34.5]} 17... b5 {[%clk 0:03:46.1]} 18. Bh4 {[%clk 0:04:18.9]}
18... Bh6 {[%clk 0:03:31.8]} 19. Nc6 {[%clk 0:04:03.9]} 19... Nxc6 {[%clk
0:03:29.1]} 20. dxc6 {[%clk 0:04:03.8]} 20... Be6 {[%clk 0:03:12]} 21. Nd5
{[%clk 0:04:00.7]} 21... bxa4 {[%clk 0:02:56]} 22. Bc4 {[%clk 0:03:51.9]} 22...
Kf7 {[%clk 0:02:22.9]} 23. Qa5 {[%clk 0:03:45]} 23... Rc8 {[%clk 0:01:36.8]} 24.
Qxa4 {[%clk 0:03:41.9]} 24... a5 {[%clk 0:01:27.6]} 25. Bxg5 {[%clk 0:03:39.7]}
25... Bxg5 {[%clk 0:01:07.6]} 26. Rxh5 {[%clk 0:03:37.9]} 26... Kg6 {[%clk
0:01:06.8]} 27. Rdh1 {[%clk 0:03:26.7]} 27... Qa7 {[%clk 0:00:43.5]} 28. Ne7+
{[%clk 0:03:02.3]} 28... Kf6 {[%clk 0:00:22]} 29. Nxc8 {[%clk 0:02:56.5]} 29...
Rxc8 {[%clk 0:00:19.2]} 30. Bxe6 {[%clk 0:02:53.5]} 30... Rb8 {[%clk 0:00:13]}
31. Bb3 {[%clk 0:02:48.8]} 31... Qf2 {[%clk 0:00:10.8]} 32. Qc4 {[%clk
0:02:45.4]} 32... Qxg2 {[%clk 0:00:08.6]} 33. Qf7# {[%clk 0:02:43.5]} 1-0